bitfinex/quotes_ETHUSD_20241103
["timestamp","ask_amount","ask_price","bid_price","bid_amount"]
[1730662797421,1.28208825,2453.4,2453.0,3.66888]
[1730662797620,4.95048825,2453.4,2453.0,3.66888]
[1730662798044,1.28208825,2453.4,2453.0,3.66888]
[1730662798636,4.95047825,2453.4,2452.9,3.66906]
[1730662798828,4.95047825,2453.4,2453.0,3.66895]
[1730662799064,1.28208825,2453.4,2453.0,3.66895]
[1730662799367,1.28208825,2453.4,2453.1,3.66875]
[1730662799549,1.34251725,2453.5,2453.2,3.6686]
[1730662800437,0.060429,2453.5,2453.3,3.66851]
[1730662800637,1.34251725,2453.5,2453.3,3.66851]
[1730662801570,1.34251725,2453.5,2453.4,3.74988691]
[1730662801571,0.060429,2453.5,2453.4,3.74988691]
[1730662801738,0.060429,2453.5,2453.4,4.50688691]
[1730662802268,0.060429,2453.5,2453.4,5.05688691]
[1730662802473,0.060429,2453.5,2453.4,4.98537]
[1730662802624,0.060429,2453.5,2453.4,7.99537]
[1730662803239,0.060429,2453.5,2453.4,7.97537]
[1730662803464,0.060429,2453.5,2453.4,7.42537]
[1730662803874,0.060429,2453.5,2453.4,4.42537]
[1730662805137,0.060429,2453.5,2453.4,4.97537]
[1730662806867,0.060429,2453.5,2453.4,4.42537]
[1730662807927,0.060429,2453.5,2453.3,3.66841]
[1730662808239,0.060429,2453.5,2453.4,3.66837]
[1730662808824,0.060429,2453.5,2453.4,3.74987658]
[1730662809472,0.060429,2453.5,2453.4,3.66837]
[1730662809968,0.060429,2453.5,2453.4,8.05267663]
[1730662810153,0.060429,2453.5,2453.4,7.97117]
[1730662810662,0.060429,2453.5,2453.4,7.42117]
[1730662810829,0.060429,2453.5,2453.4,7.97117]
[1730662811875,0.060429,2453.5,2453.4,7.98117]
[1730662812570,0.060429,2453.5,2453.4,7.99117]
[1730662812881,2.01192802,2453.7,2453.6,7.98087]
[1730662813079,2.01192802,2453.7,2453.6,11.09825326]
[1730662813579,8.02e-06,2453.7,2453.6,11.10825326]
[1730662813747,0.005,2454.2,2454.1,4.42013]
[1730662813947,0.005,2454.2,2454.1,8.17898115]
[1730662814134,0.005,2454.2,2454.1,11.09751326]
[1730662815466,0.005,2454.2,2454.1,11.08751326]
[1730662816083,0.005,2454.2,2454.1,7.97013]
[1730662817195,0.005,2454.2,2454.1,4.42013]
[1730662817952,0.005,2454.2,2453.9,3.66762]
[1730662818183,0.0604,2454.1,2453.6,3.66799]
[1730662818993,0.005,2454.2,2454.1,3.66733]
[1730662822791,0.005,2454.2,2454.0,4.42025]
[1730662823005,0.0654,2454.2,2453.7,3.66791]
[1730662823505,0.0654,2454.2,2454.0,3.66745]
[1730662823799,0.0654,2454.2,2453.8,3.66777]
[1730662823957,0.0654,2454.2,2453.7,3.66783]
[1730662824304,0.0654,2454.2,2453.9,3.6676]
[1730662824500,0.0654,2454.2,2454.0,3.66748]
[1730662825066,0.005,2454.2,2454.1,4.50391378]
[1730662825485,0.005,2454.2,2454.1,4.42243]
[1730662826417,0.005,2454.2,2454.1,4.97243]
[1730662828275,0.005,2454.2,2454.1,7.97243]
[1730662828585,0.005,2454.2,2454.1,7.98243]
[1730662830707,0.005,2454.2,2454.1,12.27943]
[1730662833621,0.005,2454.2,2454.1,7.98243]
[1730662840241,0.005,2454.2,2454.1,7.97243]
[1730662841792,0.005,2454.2,2454.1,12.26943]
[1730662842126,1e-05,2454.2,2454.1,12.26943]
[1730662842531,0.060429,2454.7,2454.6,8.02028]
[1730662843710,0.060429,2454.7,2454.6,6.66658]
[1730662843938,0.060429,2454.7,2454.5,3.6667]
[1730662844112,0.060429,2454.7,2454.5,3.66665]
[1730662844316,0.060429,2454.7,2454.6,3.66658]
[1730662844699,0.060429,2454.7,2454.5,3.66663]
[1730662844904,0.0604,2454.6,2454.5,3.66663]
[1730662845133,0.0604,2454.6,2454.4,3.66687]
[1730662845346,0.0604,2454.6,2454.4,3.66681]
[1730662845507,0.0604,2454.6,2454.4,3.6668]
[1730662845837,0.0604,2454.5,2454.1,3.66731]
[1730662846042,0.0604,2454.4,2454.1,3.66731]
[1730662846243,0.0604,2454.4,2454.0,3.66742]
[1730662846551,0.0604,2454.4,2453.8,3.66775]
[1730662846552,0.0604,2454.2,2453.8,3.66775]
[1730662846726,0.0604,2454.2,2453.7,3.66783]
[1730662846906,3.66743,2454.1,2453.5,3.66809]
[1730662847103,0.0604,2454.0,2453.6,3.668]
[1730662847322,0.0604,2453.9,2453.4,3.66829]
[1730662847831,0.0604,2453.9,2453.6,3.66806]
[1730662848059,0.0604,2453.9,2453.7,0.08149958]
[1730662848258,0.0604,2453.9,2453.6,3.66806]
[1730662848777,0.0604,2453.9,2453.4,3.66829]
[1730662848778,0.0604,2453.8,2453.4,3.66829]
[1730662848972,0.0604,2453.8,2453.2,3.66856]
[1730662848973,0.0604,2453.7,2453.3,3.66852]
[1730662849123,3.66804,2453.7,2453.2,3.66856]
[1730662849324,0.0604,2453.6,2453.2,3.66856]
[1730662850267,0.0604,2453.6,2453.3,3.66852]
[1730662850415,0.0604,2453.6,2453.2,3.66856]
[1730662850617,3.72865,2453.5,2453.0,3.73001571]
[1730662850825,0.0604,2453.4,2453.0,0.06114571]
[1730662851118,0.0604,2453.4,2453.0,3.73011571]
[1730662851561,0.0604,2453.3,2453.0,0.06114571]
[1730662851763,0.0604,2453.2,2452.7,3.66941]
[1730662851961,0.4333,2453.2,2452.8,3.66927]
[1730662852128,0.4333,2453.2,2452.7,3.66941]
[1730662852331,0.0604,2453.1,2452.5,3.66969]
[1730662852542,0.0604,2453.0,2452.6,3.66955]
[1730662852850,0.0604,2453.0,2452.6,3.66956]
[1730662853025,0.0604,2453.0,2452.7,0.0815321]
[1730662853224,0.0604,2453.0,2452.5,3.66969]
[1730662853225,4.45137133,2453.0,2452.5,3.66969]
[1730662853430,0.78235133,2453.0,2452.6,0.0815357]
[1730662853631,0.0604,2453.0,2452.6,0.0815357]
[1730662853958,0.0604,2453.0,2452.6,3.7510157]
[1730662854265,0.0604,2453.0,2452.7,3.66941]
[1730662854468,0.0604,2453.0,2452.6,0.0815357]
[1730662854978,3.72946,2453.0,2452.5,3.66958]
[1730662855127,4.45141233,2453.0,2452.5,3.66958]
[1730662855467,0.0604,2452.7,2452.1,3.75179574]
[1730662855765,4.39102233,2453.0,2452.1,3.67026]
[1730662855766,0.0604,2452.5,2452.1,3.67026]
[1730662855925,0.0604,2452.5,2451.9,3.67056]
[1730662856120,0.0604,2452.5,2452.0,3.67042]
[1730662856121,3.73014,2452.5,2452.0,3.67042]
[1730662856324,0.0604,2452.5,2452.0,3.67042]
[1730662856533,0.0604,2452.5,2451.9,3.67049]
[1730662856534,3.6699,2452.4,2451.9,3.67049]
[1730662856742,3.6699,2452.4,2451.9,7.34098]
[1730662856743,0.0604,2452.3,2451.9,7.34098]
[1730662856945,0.0604,2452.3,2451.9,3.67049]
[1730662857164,0.0604,2452.3,2452.0,0.0815561]
[1730662857370,3.67003,2452.3,2451.7,7.34161]
[1730662857663,3.67003,2452.3,2451.8,0.08155755]
[1730662857664,3.73061,2452.2,2451.8,0.08155755]
[1730662857874,4.16548583,2452.2,2451.7,3.6708]
[1730662858028,3.67034,2452.1,2451.5,3.67108]
[1730662858229,0.0604,2451.8,2451.4,3.67123]
[1730662858429,0.0604,2451.8,2451.4,3.75279532]
[1730662858654,0.0604,2451.8,2451.5,3.67122]
[1730662858859,0.0604,2451.8,2451.2,3.67159]
[1730662858860,3.7312,2451.8,2451.2,3.67159]
[1730662859025,0.0604,2451.7,2451.1,3.6718]
[1730662859229,0.0604,2451.7,2451.0,3.67191]
[1730662859230,3.73171,2451.5,2451.0,3.67191]
[1730662859430,3.73171,2451.5,2450.8,3.67216]
[1730662859431,0.0604,2451.5,2450.8,3.67216]
[1730662859770,0.0604,2451.3,2450.8,7.34433]
[1730662859977,3.732,2451.3,2450.8,3.67216]
[1730662860283,0.0604,2451.3,2451.2,3.67167]
[1730662860571,10.45854326,2452.0,2451.4,3.67129]
[1730662860572,0.0604,2451.7,2451.4,3.67129]
[1730662861065,0.0604,2451.7,2451.2,3.67159]
[1730662861066,0.0604,2451.7,2451.2,3.67155]
[1730662861381,0.0604,2451.7,2450.7,0.8033]
[1730662861382,3.73201,2451.3,2450.7,3.67239]
[1730662861665,3.11738326,2451.4,2450.5,3.67264]
[1730662861666,0.0604,2451.0,2450.5,3.67264]
[1730662861839,0.0604,2451.0,2450.3,3.67292]
[1730662861840,3.67219,2450.9,2450.3,7.34585]
[1730662862042,0.0604,2451.0,2450.5,3.67271]
[1730662862259,0.0604,2451.0,2449.9,4.537299]
[1730662862260,0.0604,2451.0,2450.7,3.67228]
[1730662862433,0.0604,2451.0,2450.8,7.34442]
[1730662862638,0.0604,2451.0,2450.8,3.67221]
[1730662863059,0.0604,2451.0,2450.9,3.67212]
[1730662863262,0.0604,2451.0,2450.1,3.11738326]
[1730662863263,0.0604,2451.0,2450.7,3.6724]
[1730662863439,0.0604,2451.0,2450.8,3.67215]
[1730662863852,0.0604,2451.0,2450.9,3.67212]
[1730662864178,0.0604,2451.0,2450.7,3.6724]
[1730662864387,0.0604,2451.0,2450.5,3.67263]
[1730662865288,0.0604,2451.0,2450.5,3.67257]
[1730662865780,0.0604,2451.0,2450.6,3.67247]
[1730662866476,0.0604,2451.0,2450.7,3.67239]
[1730662866683,0.0604,2451.0,2450.8,3.67223]
[1730662867437,0.0604,2451.0,2450.7,3.67239]
[1730662867641,0.0604,2451.0,2450.7,7.34473]
[1730662867967,0.0604,2451.0,2450.8,3.67226]
[1730662868641,0.0604,2451.0,2450.9,3.75371932]
[1730662868874,0.0604,2451.5,2451.1,3.67178]
[1730662869259,0.0604,2451.5,2451.4,3.67137]
[1730662869968,0.0604,2452.0,2451.6,3.67092]
[1730662870172,0.47697058,2452.0,2451.5,3.67107]
[1730662870683,0.47697058,2452.0,2451.6,3.67099]
[1730662870843,0.0604,2452.0,2451.5,3.67107]
[1730662871043,3.73087,2452.0,2451.5,3.67107]
[1730662871547,3.73087,2452.0,2451.1,4.44829]
[1730662871548,3.67067,2451.9,2451.4,3.67134]
[1730662872242,3.67067,2451.9,2451.2,3.67158]
[1730662872243,3.73126,2451.8,2451.2,3.67158]
[1730662872558,3.67092,2451.7,2451.2,3.67158]
[1730662872764,3.73117,2451.8,2451.3,3.6715]
[1730662873059,0.0604,2451.4,2451.0,0.0815834]
[1730662873254,0.0604,2451.4,2451.1,3.67181]
[1730662874076,0.0604,2451.4,2451.3,3.67152]
[1730662874277,0.0604,2451.8,2451.4,3.67129]
[1730662874439,0.0604,2451.8,2451.3,3.67152]
[1730662874642,0.0604,2451.8,2450.6,3.0]
[1730662874643,3.67101,2451.7,2451.1,7.34345]
[1730662874845,3.67101,2451.7,2451.2,3.67165]
[1730662875086,7.41216,2451.8,2451.3,3.67143]
[1730662875272,0.0604,2451.8,2451.4,3.67135]
[1730662875659,0.0604,2451.8,2451.5,3.67117]
[1730662875864,0.0604,2451.8,2451.4,3.67135]
[1730662876196,0.0604,2451.8,2451.4,7.34263]
[1730662876350,0.0604,2451.8,2451.4,3.67128]
[1730662876551,0.0604,2451.8,2451.4,3.67127]
[1730662876750,0.0604,2451.8,2451.5,3.67119]
[1730662877591,0.0604,2451.8,2451.6,3.67106]
[1730662878087,0.0604,2451.8,2451.6,3.67099]
[1730662878275,0.0604,2451.8,2451.4,3.67126]
[1730662878657,0.0604,2451.8,2451.2,0.7765]
[1730662878855,0.0604,2451.8,2451.5,3.67109]
[1730662879568,3.73141,2451.7,2451.2,3.67167]
[1730662879890,0.0604,2451.5,2450.8,3.67216]
[1730662880055,0.0604,2451.4,2450.8,3.67216]
[1730662880254,3.67154,2451.3,2450.8,7.34434]
[1730662880795,0.0604,2451.4,2450.6,0.7765]
[1730662881101,0.0604,2451.4,2451.1,3.67173]
[1730662882054,0.0604,2451.8,2451.3,3.67145]
[1730662882375,0.0604,2451.8,2451.4,3.67129]
[1730662882896,0.0604,2451.8,2451.3,3.67145]
[1730662883272,3.73117,2451.8,2451.3,3.67144]
[1730662883469,0.0604,2451.8,2451.4,3.67129]
[1730662884318,0.0604,2451.8,2451.6,3.67104]
[1730662885684,0.0604,2452.1,2451.7,3.67092]
[1730662885898,0.0604,2452.1,2451.9,3.67049]
[1730662886195,0.0604,2452.1,2451.9,7.34103]
[1730662886499,0.0604,2452.1,2451.8,3.67069]
[1730662887395,0.0604,2452.1,2451.6,3.67107]
[1730662887396,0.0604,2452.1,2451.6,3.67092]
[1730662887578,0.0604,2452.1,2451.7,3.67089]
[1730662887891,1.11233157,2452.1,2451.8,3.67075]
[1730662888097,0.0604,2452.1,2451.8,3.67075]
[1730662888296,0.0604,2452.1,2451.9,3.67055]
[1730662888802,0.0604,2452.8,2452.0,0.7758]
[1730662889098,0.0604,2452.8,2452.4,3.66985]
[1730662889099,3.72976,2452.8,2452.4,3.66985]
[1730662889300,0.72984572,2452.7,2452.4,3.66985]
[1730662889605,0.72984572,2452.7,2452.0,0.7758]
[1730662889765,0.72984572,2452.7,2452.3,3.66987]
[1730662889960,0.0604,2452.8,2452.5,3.66964]
[1730662890594,0.0604,2452.8,2452.4,7.33958]
[1730662891894,0.0604,2452.8,2452.4,3.66975]
[1730662892096,3.72968,2452.8,2452.3,3.67]
[1730662892605,7.39904,2452.8,2452.3,3.67]
[1730662892771,3.66946,2452.7,2452.2,7.34013]
[1730662893313,3.66946,2452.7,2452.3,3.67001]
[1730662893600,3.66946,2452.7,2452.0,3.67036]
[1730662893601,3.66974,2452.5,2452.0,3.67036]
[1730662893801,3.66974,2452.5,2452.0,7.34074]
[1730662893965,3.66974,2452.5,2452.1,3.67029]
[1730662894368,3.67013,2452.3,2451.8,3.67068]
[1730662894594,3.67013,2452.3,2451.6,7.34189]
[1730662894595,3.73065,2452.2,2451.6,7.34189]
[1730662894762,3.73065,2452.2,2451.7,3.67088]
[1730662895304,3.73065,2452.2,2451.4,0.7758]
[1730662895305,0.0604,2452.2,2451.8,3.67068]
[1730662896363,3.73057,2452.2,2451.8,3.67068]
[1730662896714,3.67039,2452.1,2451.6,3.67095]
[1730662897018,4.470629,2452.2,2451.7,3.67089]
[1730662897174,8.140879,2452.2,2451.7,3.67089]
[1730662897379,4.470629,2452.2,2451.7,3.67089]
[1730662898179,4.470629,2452.2,2451.6,3.67095]
[1730662898364,4.470629,2452.2,2451.7,3.67079]
[1730662898564,8.140899,2452.2,2451.7,3.67079]
[1730662898882,4.470629,2452.2,2451.7,3.67079]
[1730662899203,0.0604,2452.2,2451.8,0.08156979]
[1730662899368,0.0604,2452.2,2452.0,3.67046]
[1730662900500,0.0604,2452.2,2452.0,3.67039]
[1730662900705,0.0604,2452.5,2452.1,3.67032]
[1730662902500,3.66989,2452.4,2452.0,3.67039]
[1730662903285,0.374029,2452.4,2451.6,3.67095]
[1730662903500,0.374029,2452.4,2451.8,3.67076]
[1730662903501,0.0604,2452.2,2451.8,3.67076]
[1730662904071,0.0604,2452.2,2451.8,7.34145]
[1730662904712,0.0604,2452.2,2451.8,3.67069]
[1730662905391,0.0604,2452.2,2451.5,3.0]
[1730662905705,3.67046,2452.1,2451.6,3.67105]
[1730662906276,3.73065,2452.2,2451.7,3.67081]
[1730662906277,3.73057,2452.2,2451.7,3.67081]
[1730662907213,3.67032,2452.1,2451.7,3.67081]
[1730662907430,7.40085,2452.2,2451.7,3.67081]
[1730662907599,3.67033,2452.1,2451.7,3.67081]
[1730662908530,4.55477869,2452.2,2451.7,3.67081]
[1730662908736,3.73058,2452.2,2451.7,3.67081]
[1730662910130,3.67033,2452.1,2451.7,3.67081]
[1730662910326,3.67033,2452.1,2451.4,3.67126]
[1730662910327,0.0604,2451.8,2451.4,3.67126]
[1730662910731,0.0604,2451.8,2451.2,4.48069]
[1730662910732,3.7313,2451.8,2451.2,3.67153]
[1730662911022,3.7313,2451.8,2451.3,3.67142]
[1730662911023,0.0604,2451.8,2451.3,3.67142]
[1730662911239,0.0604,2451.8,2451.4,3.67133]
[1730662911790,3.73117,2451.8,2451.4,3.67133]
[1730662912300,3.73117,2451.8,2450.8,0.8091]
[1730662912301,0.0604,2451.5,2450.8,0.8091]
[1730662912495,0.0604,2451.5,2451.0,3.67195]
[1730662912496,3.7317,2451.5,2451.0,3.67195]
[1730662912920,3.7317,2451.5,2451.0,7.34384]
[1730662913207,3.7317,2451.5,2451.1,3.67178]
[1730662913402,7.40302,2451.5,2451.1,3.67178]
[1730662913644,5.83847221,2451.5,2451.1,3.67178]
[1730662913848,5.83847221,2451.5,2451.0,3.67192]
[1730662914019,0.84113685,2451.4,2451.0,3.67192]
[1730662914213,3.67144,2451.4,2450.9,3.67197]
[1730662914407,0.84113685,2451.4,2450.9,3.67197]
[1730662914604,0.84113685,2451.4,2451.1,3.67181]
[1730662915744,0.84113685,2451.4,2450.9,3.67197]
[1730662915912,4.51250685,2451.4,2451.0,3.67195]
[1730662916431,3.44926046,2451.5,2450.9,3.67197]
[1730662916604,4.51257685,2451.4,2451.0,3.67194]
[1730662916807,0.84113685,2451.4,2451.1,3.67181]
[1730662917049,2.16717221,2451.5,2451.1,7.34355]
[1730662917253,0.84113685,2451.4,2451.1,7.34355]
[1730662917548,0.0604,2451.5,2451.4,3.67137]
[1730662917549,0.84113685,2451.5,2451.4,3.67137]
[1730662917846,0.0604,2451.7,2451.4,3.67137]
[1730662918044,0.0604,2451.7,2451.3,3.67149]
[1730662918045,0.90153685,2451.7,2451.3,3.67143]
[1730662918258,0.0604,2451.7,2451.4,3.67126]
[1730662918421,0.0604,2451.7,2451.5,3.6712]
[1730662918749,0.84113685,2451.9,2451.6,3.67107]
[1730662919114,0.90153685,2452.0,2451.7,3.67089]
[1730662919441,0.90153685,2452.0,2451.6,3.67105]
[1730662919643,0.84113685,2451.9,2451.6,3.67105]
[1730662919950,0.84113685,2451.9,2451.5,3.67122]
[1730662920257,0.84113685,2451.9,2451.5,3.67114]
[1730662920423,1.96453046,2451.9,2451.3,3.6714]
[1730662920608,0.84113685,2451.8,2451.5,3.67119]
[1730662920813,1.96453046,2451.9,2451.5,3.67119]
[1730662921247,0.84113685,2451.9,2451.6,3.67107]
[1730662921449,4.57206685,2452.0,2451.6,3.67107]
[1730662921605,0.84113685,2451.9,2451.7,4.47992]
[1730662921807,0.84113685,2452.0,2451.8,3.67077]
[1730662922767,0.84113685,2452.1,2451.9,3.67062]
[1730662922968,0.84113685,2452.2,2451.8,3.67077]
[1730662923270,0.84113685,2452.2,2451.8,7.34145]
[1730662923637,0.84113685,2452.2,2451.8,3.75221744]
[1730662923835,0.84113685,2452.2,2452.0,3.67035]
[1730662924039,0.84113685,2452.3,2452.1,3.67032]
[1730662925028,0.84113685,2452.3,2452.2,3.67017]
[1730662925365,1.28208825,2452.4,2452.0,3.67036]
[1730662925366,0.84113685,2452.4,2452.0,3.67036]
[1730662925837,0.84113685,2452.4,2452.1,3.67026]
[1730662926043,4.57133685,2452.5,2452.1,3.67026]
[1730662926258,4.57133685,2452.5,2452.0,3.67036]
[1730662926431,4.51101685,2452.4,2452.0,3.67036]
[1730662926766,4.51101685,2452.4,2451.8,3.67064]
[1730662926767,0.0604,2452.2,2451.8,3.67075]
[1730662926992,0.90153685,2452.2,2451.9,3.67048]
[1730662927270,0.84113685,2452.3,2451.9,3.67048]
[1730662927485,1.28208825,2452.4,2452.0,3.67034]
[1730662927486,0.84113685,2452.4,2452.0,3.67034]
[1730662927772,0.84113685,2452.4,2452.1,3.67025]
[1730662928341,0.90153685,2452.5,2452.1,3.67025]
[1730662928565,0.84113685,2452.4,2452.1,3.67025]
[1730662929070,0.90153685,2452.5,2452.1,3.67025]
[1730662929442,4.57128685,2452.5,2452.0,3.67046]
[1730662929626,0.84113685,2452.4,2452.0,3.67046]
[1730662930678,0.84113685,2452.4,2452.2,3.67016]
[1730662930888,0.90153685,2452.5,2452.1,3.67032]
[1730662931761,4.57127685,2452.5,2452.0,7.34077]
[1730662931945,0.84113685,2452.4,2452.0,7.34077]
[1730662933196,0.84113685,2452.4,2452.1,3.67032]
[1730662933345,4.51100685,2452.4,2452.0,3.67038]
[1730662933544,3.67012,2452.3,2451.8,8.1372]
[1730662933742,3.67012,2452.3,2451.8,8.13716]
[1730662933943,3.67012,2452.3,2451.8,4.46648]
[1730662934164,3.67012,2452.3,2451.8,3.67068]
[1730662934368,0.0604,2452.1,2451.6,8.13774]
[1730662934597,0.0604,2452.1,2451.6,4.46676]
[1730662934793,0.0604,2452.1,2451.8,3.67075]
[1730662935088,0.0604,2452.1,2451.8,7.34143]
[1730662935443,0.0604,2452.1,2451.8,3.67068]
[1730662936065,0.0604,2452.1,2451.7,3.67091]
[1730662936275,0.0604,2452.1,2451.8,3.67064]
[1730662936459,0.0604,2452.1,2451.9,3.67061]
[1730662936862,0.0604,2452.1,2451.8,3.67076]
[1730662937258,4.57186685,2452.1,2451.7,3.67091]
[1730662937893,0.90153685,2452.1,2451.7,7.34172]
[1730662938354,4.57185685,2452.1,2451.7,3.67081]
[1730662938554,0.90153685,2452.1,2451.7,3.67081]
[1730662938969,0.90153685,2452.1,2451.8,3.67075]
[1730662939193,0.90153685,2452.1,2451.7,3.67081]
[1730662939495,0.90153685,2452.1,2451.7,7.34165]
[1730662940392,0.90153685,2452.1,2451.5,3.6711]
[1730662940393,0.84113685,2452.0,2451.5,3.6711]
[1730662940699,0.84113685,2451.9,2451.5,3.6711]
[1730662940899,0.84113685,2451.9,2451.5,7.34223]
[1730662941575,0.84113685,2451.9,2451.5,7.34222]
[1730662941887,0.84113685,2451.9,2451.5,3.6711]
[1730662942258,0.84113685,2451.9,2451.5,7.34223]
[1730662942866,0.84113685,2451.9,2451.6,3.67105]
[1730662943460,0.84113685,2451.9,2451.7,3.67091]
[1730662943661,0.84113685,2452.0,2451.7,3.67091]
[1730662944185,0.84113685,2451.9,2451.5,7.34222]
[1730662944586,0.84113685,2451.9,2451.6,3.67095]
[1730662945010,0.84113685,2451.9,2451.5,7.34225]
[1730662945367,0.84113685,2451.9,2451.5,3.6711]
[1730662945572,0.84113685,2451.9,2451.6,3.67103]
[1730662945909,0.84113685,2451.9,2451.5,3.6711]
[1730662946072,0.0604,2451.8,2451.5,3.6711]
[1730662946472,0.0604,2451.8,2451.5,7.34224]
[1730662946674,0.0604,2451.8,2451.5,3.6711]
[1730662946868,0.0604,2451.8,2451.5,7.34223]
[1730662947272,0.0604,2451.8,2451.4,3.67129]
[1730662947473,0.90153685,2451.8,2451.4,3.67129]
[1730662947985,4.51213685,2451.7,2451.2,3.67164]
[1730662948189,0.84113685,2451.6,2451.2,3.67164]
[1730662948421,5.59876276,2451.8,2451.2,3.67164]
[1730662948422,0.84113685,2451.7,2451.2,3.67164]
[1730662948571,0.84113685,2451.7,2451.4,3.67136]
[1730662949825,0.84113685,2451.6,2451.4,3.67136]
[1730662950621,0.84113685,2451.7,2451.5,3.67122]
[1730662950989,0.90153685,2451.8,2451.4,3.67136]
[1730662951196,0.90153685,2451.8,2451.4,7.34266]
[1730662951379,0.90153685,2451.8,2451.3,0.752]
[1730662951380,0.84113685,2451.8,2451.7,3.67092]
[1730662951573,0.84113685,2451.9,2451.7,3.67092]
[1730662952780,0.84113685,2451.9,2451.6,3.67099]
[1730662953516,0.84113685,2451.8,2451.5,7.34244]
[1730662953925,0.84113685,2451.8,2451.6,3.67104]
[1730662954076,0.0604,2451.7,2451.5,3.67122]
[1730662954282,0.90153685,2451.7,2451.5,3.67122]
[1730662954483,0.90153685,2451.7,2451.4,3.67134]
[1730662955207,0.90153685,2451.7,2451.3,7.34286]
[1730662955393,0.84113685,2451.6,2451.4,3.67129]
[1730662955596,0.90153685,2451.7,2451.4,3.67129]
[1730662955921,0.84113685,2451.6,2451.3,3.6715]
[1730662956323,0.84113685,2451.6,2451.4,3.67134]
[1730662956527,0.90153685,2451.7,2451.5,3.67122]
[1730662957033,0.0604,2451.7,2451.5,3.67122]
[1730662957586,0.84113685,2451.8,2451.5,3.67122]
[1730662959435,0.84113685,2451.7,2451.5,3.67122]
[1730662959589,0.84113685,2451.7,2451.6,3.67107]
[1730662959936,0.84113685,2451.8,2451.6,3.67107]
[1730662960519,0.84113685,2451.7,2451.6,3.67107]
[1730662960695,0.84113685,2451.7,2451.5,3.6712]
[1730662960897,0.84113685,2451.8,2451.5,3.6712]
[1730662961447,1.28208825,2451.8,2451.5,3.67114]
[1730662961939,1.28208825,2451.8,2451.4,3.67133]
[1730662962411,1.28208825,2451.8,2451.4,7.3426]
[1730662962603,1.28208825,2451.8,2451.4,3.67127]
[1730662962935,1.28208825,2451.8,2451.4,7.34257]
[1730662963547,1.28208825,2451.8,2451.5,3.67118]
[1730662964238,1.28208825,2451.8,2450.8,9.79237847]
[1730662964538,1.28208825,2451.9,2451.7,3.67092]
[1730662966249,1.28208825,2451.9,2451.6,8.16362]
[1730662966405,1.28208825,2451.9,2451.7,3.6709]
[1730662966743,1.28208825,2452.0,2451.8,3.67077]
[1730662968426,3.73043,2452.3,2451.8,3.67077]
[1730662969246,1.28254601,2452.0,2451.8,3.67077]
[1730662969533,1.28254601,2452.0,2451.7,3.6709]
[1730662969694,1.28254601,2452.0,2451.7,3.67084]
[1730662969894,1.28254601,2452.0,2451.8,3.67077]
[1730662970799,1.28254601,2452.0,2451.9,3.67062]
[1730662971002,1.71006134,2452.1,2451.9,3.67062]
[1730662971003,1.28254601,2452.1,2451.9,3.67062]
[1730662972150,1.28254601,2452.1,2451.8,3.67077]
[1730662972498,1.28254601,2452.1,2451.8,3.67069]
[1730662972697,1.28254601,2452.0,2451.8,3.67075]
[1730662973311,1.28254601,2452.0,2451.7,3.6709]
[1730662973713,1.23254601,2452.0,2451.7,3.6709]
[1730662974047,1.23254601,2452.0,2451.7,3.67085]
[1730662974213,3.73102,2451.9,2451.4,3.67128]
[1730662974421,3.73102,2451.9,2451.5,3.67121]
[1730662975577,0.0604,2451.9,2451.5,7.34233]
[1730662975748,0.0604,2451.9,2451.6,3.67104]
[1730662976173,0.0604,2451.9,2451.5,3.67112]
[1730662976339,0.0604,2451.9,2451.5,3.67111]
[1730662976977,1.77046134,2451.9,2451.5,7.34223]
[1730662977141,0.0604,2451.9,2451.5,7.34226]
[1730662977474,1.77046134,2451.9,2451.5,7.34226]
[1730662977649,5.44108134,2451.9,2451.5,3.67111]
[1730662978232,1.77046134,2451.9,2451.5,7.34225]
[1730662978437,1.77046134,2451.9,2451.5,3.67111]
[1730662978777,1.77046134,2451.9,2451.6,3.67104]
[1730662979135,1.77046134,2451.9,2451.5,3.67111]
[1730662979484,1.71006134,2451.8,2451.4,3.67135]
[1730662979772,5.38087134,2451.8,2451.3,4.49651]
[1730662979991,5.38104134,2451.7,2451.2,3.67165]
[1730662980335,5.38104134,2451.7,2451.2,3.67167]
[1730662980683,1.71006134,2451.7,2451.3,3.67141]
[1730662980983,1.71006134,2451.7,2451.6,0.8251]
[1730662981153,1.71006134,2451.9,2451.7,3.67092]
[1730662981477,1.71006134,2451.9,2451.8,3.67077]
[1730662981849,1.71006134,2451.9,2451.7,3.67091]
[1730662982634,1.28435894,2451.8,2451.7,3.67091]
[1730662982842,1.28435894,2451.8,2451.6,3.671]
[1730662982843,1.71006134,2451.8,2451.6,3.671]
[1730662983065,1.28439231,2451.7,2451.6,3.671]
[1730662983582,1.28439231,2451.7,2451.5,3.67113]
[1730662984773,1.28439231,2451.7,2451.6,3.67107]
[1730662987557,1.28439231,2451.7,2451.3,4.49655]
[1730662987761,1.28439231,2451.7,2451.4,3.67128]
[1730662987762,1.28467528,2451.6,2451.4,3.67128]
[1730662988070,1.28467528,2451.6,2451.5,3.67122]
[1730662988646,1.28467528,2451.7,2451.5,3.67122]
[1730662988846,1.28467528,2451.7,2451.6,3.67107]
[1730662990160,1.71006134,2451.7,2451.6,3.67107]
[1730662990584,1.28460122,2451.7,2451.6,3.67107]
[1730662990889,1.71006134,2451.7,2451.6,3.67107]
[1730662991254,1.71006134,2451.8,2451.6,3.67107]
[1730662991453,1.71006134,2451.8,2451.4,3.67131]
[1730662991687,1.28463425,2451.6,2451.5,3.6712]
[1730662993098,1.28463425,2451.6,2451.4,3.67131]
[1730662993293,1.28463425,2451.6,2451.2,3.67155]